bitfinex/quotes_ETHUSD_20240828
["timestamp","ask_amount","ask_price","bid_price","bid_amount"]
[1724806465000,0.04048018,2449.0,2448.8,3.0]
[1724806465200,0.04048018,2449.0,2448.7,3.0]
[1724806465427,4.12390018,2449.0,2448.8,1.42058891]
[1724806465624,4.12390018,2449.0,2448.8,3.0]
[1724806466029,4.12390018,2449.0,2448.7,3.0]
[1724806466534,4.08346,2448.9,2448.6,4.14143258]
[1724806466734,0.55,2448.8,2448.3,0.409]
[1724806466934,4.08423,2448.5,2448.0,12.36296907]
[1724806467132,4.08393,2448.7,2448.1,5.38843286]
[1724806467428,4.08397,2448.6,2448.1,3.96750418]
[1724806467630,0.04103726,2448.5,2448.1,1.83603963]
[1724806468115,4.12521726,2448.5,2448.1,1.83603963]
[1724806468298,4.12521726,2448.5,2448.1,3.96749463]
[1724806468502,4.12521726,2448.5,2448.0,11.51044167]
[1724806468503,4.08471,2448.2,2448.0,11.51044167]
[1724806468837,4.08471,2448.2,2447.8,0.8525274]
[1724806468838,4.0848,2448.1,2447.8,0.8525274]
[1724806469009,4.08471,2448.2,2447.7,4.14143258]
[1724806469010,0.04103726,2448.0,2447.9,1.42108219]
[1724806469208,4.08471,2448.2,2447.9,1.42108219]
[1724806469209,0.55,2448.1,2447.9,1.42108219]
[1724806469528,0.55,2448.1,2447.8,2.13162986]
[1724806469529,0.04103726,2448.0,2447.8,2.13160444]
[1724806470038,0.04103726,2448.0,2447.8,5.13160444]
[1724806470246,0.04103726,2448.0,2447.8,6.54531999]
[1724806470449,8.1688,2448.4,2447.8,6.54528772]
[1724806470604,4.307,2449.5,2447.8,6.54528772]
[1724806470605,0.04103726,2448.3,2447.9,3.55264133]
[1724806470942,4.08431,2448.4,2448.2,4.14143258]
[1724806471105,4.08446,2448.3,2448.2,4.14143258]
[1724806471620,4.63446,2448.3,2448.2,4.14143258]
[1724806471830,4.63446,2448.3,2447.8,5.98409957]
[1724806471831,4.08476,2448.2,2447.9,4.14143258]
[1724806472437,8.16955,2448.2,2447.9,4.14143258]
[1724806472643,0.04103726,2448.1,2447.9,4.14143258]
[1724806473535,4.12584726,2448.1,2447.9,4.14143258]
[1724806474433,4.08496,2448.0,2447.9,4.14143258]
[1724806474826,4.12599726,2448.0,2447.9,4.14143258]
[1724806475328,0.04103726,2448.0,2447.9,4.14143258]
[1724806475506,4.12599726,2448.0,2447.9,4.14143258]
[1724806475912,0.04103726,2448.0,2447.9,4.14143258]
[1724806480215,6.4557,2448.4,2447.9,5.09897584]
[1724806480440,0.03854262,2448.3,2447.9,4.14143258]
[1724806481956,4.12309262,2448.3,2447.9,4.14143258]
[1724806482829,4.08463,2448.2,2447.9,4.14143258]
[1724806483353,0.03828922,2448.1,2447.9,4.14143258]
[1724806487119,8.16911,2448.3,2447.9,4.14143258]
[1724806487346,0.03792182,2448.0,2447.9,4.14143258]
[1724806487955,4.08463,2448.2,2447.9,4.14143258]
[1724806488147,0.03792182,2448.0,2447.9,4.14143258]
[1724806488345,4.08463,2448.2,2447.9,4.14143258]
[1724806488552,0.03792182,2448.0,2447.9,4.14143258]
[1724806488859,4.12288182,2448.0,2447.9,4.14143258]
[1724806489069,4.0853,2447.8,2447.6,6.27303249]
[1724806489223,4.0853,2447.8,2447.7,3.0]
[1724806490168,2.3979,2447.5,2447.1,0.8525274]
[1724806490331,4.0868,2446.9,2446.8,0.0103591]
[1724806490523,4.6368,2446.9,2446.8,0.0103591]
[1724806490723,4.67459511,2446.9,2446.8,0.0103591]
[1724806491599,4.67459511,2446.9,2446.8,4.15179168]
[1724806491600,0.03779511,2446.9,2446.8,4.15179168]
[1724806491751,0.00267505,2446.9,2446.8,7.03307085]
[1724806492106,4.08605,2447.4,2446.8,8.45465482]
[1724806492300,7.278675,2447.8,2447.2,4.14143258]
[1724806492301,4.08555,2447.7,2447.2,4.14143258]
[1724806492445,4.08555,2447.7,2447.4,4.14143258]
[1724806493089,4.0858,2447.5,2447.4,4.14143258]
[1724806493260,4.08567,2447.6,2447.2,4.14143258]
[1724806493261,4.08599,2447.4,2447.2,4.14143258]
[1724806493591,4.08601,2447.4,2447.2,4.14143258]
[1724806493765,4.08613,2447.3,2447.0,4.55043258]
[1724806495582,8.17211,2447.4,2447.0,4.55043258]
[1724806495914,4.08621,2447.3,2447.0,4.55043258]
[1724806496109,4.08601,2447.4,2447.0,4.55043258]
[1724806496312,4.08601,2447.4,2447.0,5.33416863]
[1724806497503,4.08571,2447.6,2447.2,4.14143258]
[1724806497504,8.17143,2447.6,2447.2,4.14143258]
[1724806497710,4.08571,2447.6,2447.2,4.14143258]
[1724806497909,4.08605,2447.4,2447.0,4.55043258]
[1724806498111,4.08616,2447.3,2447.0,4.55043258]
[1724806498730,4.08616,2447.3,2446.9,7.8713962]
[1724806498731,4.08616,2447.3,2446.9,7.36900909]
[1724806499020,0.55,2447.5,2446.8,4.56697085]
[1724806499021,4.08664,2447.0,2446.8,4.15179168]
[1724806499224,4.0868,2446.9,2446.8,0.0103591]
[1724806499425,4.0868,2446.9,2446.6,4.05179168]
[1724806499625,4.08679,2447.0,2446.6,4.05179168]
[1724806499921,4.08682,2446.9,2446.6,4.05179168]
[1724806500545,8.17426,2446.7,2446.6,4.05179168]
[1724806500686,8.1746,2446.6,2446.4,1.2787911]
[1724806501125,4.0873,2446.6,2446.4,1.2787911]
[1724806501812,4.08714,2446.7,2446.4,1.2787911]
[1724806502119,4.0873,2446.6,2446.4,1.2787911]
[1724806502351,4.0875,2446.5,2446.3,4.14143258]
[1724806502721,4.495964,2446.7,2446.0,0.409]
[1724806502722,4.08786,2446.3,2446.0,0.409]
[1724806503248,4.08808,2446.2,2446.0,0.409]
[1724806503961,4.08892,2445.7,2445.3,6.47613258]
[1724806504123,4.08874,2445.8,2445.3,6.47613258]
[1724806504124,4.08899,2445.6,2445.3,6.47613258]
[1724806504517,8.17813,2445.6,2445.3,4.14143258]
[1724806504859,4.08933,2445.4,2445.1,0.409]
[1724806505078,4.08948,2445.3,2445.0,2.3398]
[1724806505352,4.08948,2445.3,2444.8,4.14143258]
[1724806505523,8.17852,2445.5,2444.8,6.63933258]
[1724806505723,4.08923,2445.5,2445.1,4.14143258]
[1724806506261,4.08923,2445.5,2444.8,3.16183326]
[1724806506262,4.08931,2445.4,2444.9,5.55690309]
[1724806506417,4.0889,2445.7,2444.9,5.63869795]
[1724806506624,4.0889,2445.7,2445.0,0.8136598]
[1724806506941,8.1778,2445.7,2445.0,0.8136598]
[1724806507269,4.0889,2445.7,2445.0,0.8136598]
[1724806507471,8.17781,2445.7,2445.0,3.8136598]
[1724806507668,4.0889,2445.7,2445.0,3.8136598]
[1724806507983,4.08856,2445.9,2445.2,5.55690309]
[1724806508185,4.08856,2445.9,2445.3,2.4425]
[1724806508595,4.08866,2445.8,2445.3,2.4425]
[1724806509081,4.08856,2445.9,2445.3,2.4425]
[1724806509082,4.0888,2445.7,2445.3,2.4425]
[1724806510792,4.08897,2445.6,2445.3,2.4425]
[1724806511360,4.0888,2445.7,2445.3,2.4425]
[1724806511566,8.1777,2445.7,2445.3,2.4425]
[1724806512500,4.08898,2445.6,2445.3,2.4425]
[1724806512698,4.0888,2445.7,2445.3,2.4425]
[1724806513056,4.08908,2445.6,2445.3,2.4425]
[1724806514758,8.17775,2445.7,2445.3,2.4425]
[1724806514962,8.17775,2445.7,2445.3,3.97934122]
[1724806515262,8.17769,2445.7,2445.3,3.97934122]
[1724806515774,4.0888,2445.7,2445.3,3.97934122]
[1724806517595,11.52696,2446.9,2445.3,3.97934122]
[1724806517596,2.2863,2446.7,2445.6,8.02670309]
[1724806517894,4.08774,2446.4,2446.2,5.55690309]
[1724806518299,4.08774,2446.4,2445.9,5.55690309]
[1724806518510,4.08758,2446.5,2445.9,5.55690309]
[1724806518673,4.08664,2447.0,2446.0,5.98606109]
[1724806518869,2.4563,2447.1,2446.5,5.55690309]
[1724806518870,4.08683,2446.9,2446.5,5.55690309]
[1724806519479,8.17373,2446.9,2446.5,5.55690309]
[1724806519830,4.08683,2446.9,2446.5,6.3621234]
[1724806520196,8.1725,2447.3,2446.8,5.55690309]
[1724806520391,4.08641,2447.2,2446.8,7.88680309]
[1724806520591,4.08647,2447.1,2446.8,8.68365773]
[1724806521339,4.08624,2447.3,2446.8,8.68365773]
[1724806521632,8.17251,2447.3,2446.8,8.68365773]
[1724806521799,4.08633,2447.2,2446.8,8.68365773]
[1724806522296,4.08624,2447.3,2446.9,0.86836577]
[1724806522510,4.08584,2447.5,2446.9,0.95009637]
[1724806522728,4.08554,2447.7,2447.1,5.55690309]
[1724806523027,4.08554,2447.7,2447.2,0.55569031]
[1724806523429,4.08554,2447.7,2447.2,6.00869031]
[1724806523635,8.17114,2447.7,2447.2,6.00869031]
[1724806523801,4.08582,2447.5,2447.2,6.00869031]
[1724806524188,4.08582,2447.5,2447.0,7.36900909]
[1724806524189,2.4216,2447.5,2447.0,7.36900909]
[1724806524526,4.08646,2447.1,2447.0,7.36900909]
[1724806524688,4.08706,2446.8,2446.6,5.453]
[1724806524919,4.08706,2446.8,2446.6,3.0]
[1724806525226,2.4216,2447.5,2446.6,3.85569031]
[1724806525227,8.17316,2447.1,2446.6,3.85569031]
[1724806525559,4.08667,2447.0,2446.6,3.85569031]
[1724806526343,4.0869,2446.9,2446.5,5.55690309]
[1724806526567,4.08697,2446.8,2446.5,5.55690309]
[1724806526869,4.0869,2446.9,2446.5,5.55690309]
[1724806527286,4.08656,2447.1,2446.5,5.55690309]
[1724806527287,8.17318,2447.1,2446.5,5.55690309]
[1724806527576,4.08673,2447.0,2446.5,7.12499431]
[1724806527880,8.17314,2447.1,2446.5,7.12499431]
[1724806528076,8.17316,2447.1,2446.6,0.75339943]
[1724806528608,4.0868,2446.9,2446.6,0.75339943]
[1724806528952,8.17318,2447.1,2446.6,0.75339943]
[1724806529152,6.50747,2447.5,2446.6,0.75339943]
[1724806529153,8.17253,2447.3,2446.6,0.75339943]
[1724806529373,0.55,2447.2,2446.6,0.75339943]
[1724806529587,4.08648,2447.1,2446.6,0.75339943]
[1724806529757,4.08648,2447.1,2446.7,0.78783937]
[1724806530562,4.63632,2447.2,2446.3,9.71500909]
[1724806530774,4.08667,2447.0,2446.4,3.0]
[1724806530996,0.52996734,2447.2,2446.4,3.409]
[1724806531153,4.08717,2446.7,2446.4,3.0]
[1724806531356,8.17441,2446.7,2446.4,3.0]
[1724806531667,4.03717,2446.7,2446.3,5.346]
[1724806531884,4.03717,2446.7,2446.3,6.43629031]
[1724806532069,8.17386,2446.9,2446.3,6.43629031]
[1724806532266,4.08635,2447.2,2446.5,5.55690309]
[1724806532494,4.08635,2447.2,2446.5,5.96590309]
[1724806532677,4.08663,2447.1,2446.5,5.96590309]
[1724806532869,6.74958,2447.5,2446.6,1.33349122]
[1724806533072,4.08673,2447.0,2446.6,1.33349122]
[1724806533395,8.17351,2447.0,2446.6,1.33349122]
[1724806533552,4.08673,2447.0,2446.5,5.55690309]
[1724806533758,4.08697,2446.8,2446.5,5.55690309]
[1724806533977,4.08697,2446.8,2446.5,4.16286187]
[1724806534308,0.81737,2446.8,2446.1,0.409]
[1724806534458,0.81737,2446.8,2446.1,4.16286187]
[1724806534459,0.55,2446.7,2446.1,4.16286187]
[1724806534797,4.08766,2446.4,2446.1,4.16286187]
[1724806535561,0.55,2446.7,2445.7,0.409]
[1724806535562,4.08811,2446.2,2445.8,0.409]
[1724806535763,4.08811,2446.2,2445.8,4.57186187]
[1724806535961,4.08811,2446.2,2445.7,2.354]
[1724806536180,4.08878,2445.8,2445.3,2.3457]
[1724806536386,4.08889,2445.7,2445.1,5.55373174]
[1724806536703,2.4863,2446.0,2444.8,1.2787911]
[1724806536704,4.08924,2445.5,2444.8,6.40625914]
[1724806536912,4.08924,2445.5,2444.9,2.40450141]
[1724806537084,4.08913,2445.6,2444.9,0.98188302]
[1724806537085,4.08932,2445.4,2444.9,0.98188302]
[1724806537307,4.08948,2445.3,2444.9,0.98188302]
[1724806537470,4.08932,2445.4,2444.9,0.98188302]
[1724806537677,4.08932,2445.4,2445.0,0.65356148]
[1724806538180,4.089,2445.6,2445.1,5.55373174]
[1724806538379,8.17754,2445.8,2445.1,5.55373174]
[1724806538710,4.08874,2445.8,2445.1,5.6355222]
[1724806538929,4.08874,2445.8,2445.2,0.56355222]
[1724806539220,6.57469,2446.0,2445.4,5.55373174]
[1724806539221,4.08839,2446.0,2445.4,5.55373174]
[1724806539523,4.08849,2445.9,2445.4,5.55373174]
[1724806539683,8.17684,2446.0,2445.4,5.55373174]
[1724806539891,4.08852,2445.9,2445.4,7.08275582]
[1724806540186,8.17683,2446.0,2445.4,7.08275582]
[1724806540389,8.17683,2446.0,2445.4,7.16453478]
[1724806540390,4.08839,2446.0,2445.4,7.16453478]
[1724806540712,4.08806,2446.2,2445.5,0.95320348]
[1724806540876,4.08806,2446.2,2445.6,0.08177521]
[1724806541078,4.08806,2446.2,2445.5,3.95320348]
[1724806541722,4.08825,2446.1,2445.5,3.95320348]
[1724806541888,4.08825,2446.1,2445.6,1.10359593]
[1724806542094,4.08833,2446.0,2445.6,1.10359593]
[1724806542291,4.08833,2446.0,2445.5,3.0]
[1724806542526,4.08865,2445.8,2445.5,3.0]
[1724806542816,8.17676,2446.0,2445.5,3.0]
[1724806542997,4.08833,2446.0,2445.6,0.85537317]
[1724806544782,8.17619,2446.2,2445.7,2.3678]
[1724806544988,4.08775,2446.4,2445.7,2.3678]
[1724806545211,4.08848,2445.9,2445.5,3.0]
[1724806545484,4.08865,2445.8,2445.5,5.3678]
[1724806545829,4.08833,2446.0,2445.3,0.409]
[1724806545987,4.08906,2445.6,2445.3,0.409]
[1724806546419,4.08897,2445.7,2445.3,0.409]
[1724806546585,8.17649,2446.1,2445.4,5.55373174]
[1724806546784,4.08824,2446.1,2445.5,0.60445194]
[1724806547487,4.0884,2446.0,2445.5,0.60445194]
[1724806547700,4.08848,2445.9,2445.5,0.60445194]
[1724806548232,8.17704,2445.9,2445.5,0.60445194]
[1724806548397,4.08848,2445.9,2445.5,0.60445194]
[1724806548612,4.08848,2445.9,2445.4,5.55373174]
[1724806550113,4.08843,2446.0,2445.5,2.3336]
[1724806550316,4.08849,2445.9,2445.5,2.3336]
[1724806551320,4.08849,2445.9,2445.5,3.16323317]
[1724806552029,4.08831,2446.0,2445.5,3.16323317]
[1724806552388,4.08853,2445.9,2445.5,3.24500381]
[1724806552616,4.08853,2445.9,2445.5,3.16323317]
[1724806553238,4.08808,2446.2,2445.7,5.55373174]
[1724806553394,4.0882,2446.1,2445.7,5.55373174]
[1724806553936,4.08807,2446.2,2445.7,5.55373174]
[1724806554236,4.08807,2446.2,2445.9,2.3647]
[1724806554528,4.08774,2446.4,2445.9,2.3647]
[1724806554738,4.08743,2446.6,2446.0,5.63549067]
[1724806555094,4.087,2446.8,2446.3,5.55373174]
[1724806555343,3.64972,2447.3,2446.4,0.08174521]
[1724806555647,8.17415,2446.8,2446.3,5.55373174]
[1724806555940,4.08639,2447.2,2446.6,5.55373174]
[1724806556096,4.08649,2447.1,2446.7,0.63710544]
[1724806557036,4.08664,2447.0,2446.6,5.55373174]
[1724806557244,8.17341,2447.0,2446.6,5.55373174]
[1724806557396,4.08684,2446.9,2446.6,5.55373174]
[1724806557596,4.08711,2446.8,2446.4,5.4667]
[1724806557826,4.08707,2446.8,2446.5,0.54667]
[1724806558337,4.08707,2446.8,2446.4,5.4667]
[1724806558338,4.08723,2446.7,2446.4,5.4667]
[1724806558807,4.08707,2446.8,2446.4,5.4667]
[1724806559007,4.08706,2446.8,2446.4,5.4667]
[1724806559220,4.08723,2446.7,2446.4,5.4667]
[1724806559417,4.08706,2446.8,2446.4,5.4667]
[1724806559617,8.17414,2446.8,2446.4,5.4667]
[1724806560117,4.08715,2446.7,2446.4,9.62980965]
[1724806560504,4.08747,2446.5,2446.4,4.16310965]
[1724806560706,4.08747,2446.5,2446.1,6.60130965]
[1724806561345,4.08764,2446.4,2446.1,4.16310965]
[1724806562143,4.08764,2446.4,2445.9,0.409]
[1724806562390,4.08764,2446.4,2445.9,1.3146893]
[1724806562946,4.08789,2446.3,2445.9,1.3146893]
[1724806563112,4.08804,2446.2,2445.9,0.409]
[1724806563308,4.08789,2446.3,2445.9,0.409]
[1724806563309,4.08789,2446.3,2445.9,3.409]
[1724806563531,4.08789,2446.3,2445.9,0.409]
[1724806563743,4.08789,2446.3,2445.7,0.409]
[1724806564017,8.1758,2446.3,2445.7,1.27078761]
[1724806564518,4.088,2446.2,2445.7,1.27078761]
[1724806564958,4.088,2446.2,2445.7,4.27078761]
[1724806567145,4.088,2446.2,2445.7,3.409]
[1724806567550,4.08849,2445.9,2445.7,3.0]
[1724806567870,4.08815,2446.1,2445.7,3.0]
[1724806568162,4.08794,2446.3,2445.7,5.4706]
[1724806568465,4.08794,2446.3,2445.7,7.30986592]
[1724806568763,4.08807,2446.2,2445.7,7.30986592]
[1724806569461,4.08814,2446.1,2445.7,7.30986592]
[1724806569671,4.08814,2446.1,2445.7,5.4706]
[1724806570218,4.08788,2446.3,2445.7,5.4706]
[1724806570446,8.1758,2446.3,2445.7,5.4706]
[1724806570649,4.08788,2446.3,2445.7,7.30986592]
[1724806570858,8.17582,2446.3,2445.7,7.30986592]
[1724806571033,4.08824,2446.1,2445.7,7.30986592]
[1724806571229,4.08824,2446.1,2445.7,3.0]
[1724806571431,4.08799,2446.2,2445.4,2.2623]
[1724806571432,4.08866,2445.8,2445.4,2.2623]
[1724806571637,4.08866,2445.8,2445.4,5.2623]
[1724806571846,4.08883,2445.7,2445.3,12.92205923]
[1724806572042,4.08922,2445.5,2445.0,5.55305014]
[1724806572336,4.08948,2445.3,2444.7,9.94930633]
[1724806572552,8.17909,2445.3,2444.8,1.08018337]
[1724806572744,4.0897,2445.2,2444.8,1.08018337]
[1724806572937,4.08948,2445.3,2444.7,7.81535014]
[1724806573167,4.08948,2445.3,2445.0,5.55305014]
[1724806573355,8.17858,2445.5,2445.0,5.55305014]
[1724806573559,0.55,2445.4,2445.0,5.55305014]
[1724806573758,6.54981,2445.9,2445.0,6.10835515]
[1724806573956,4.08888,2445.7,2445.1,0.08179904]
[1724806574160,4.08861,2445.9,2445.3,5.55305014]
[1724806574472,4.08873,2445.8,2445.4,0.79224501]
[1724806574770,4.08824,2446.1,2445.4,0.79224501]
[1724806574926,4.08838,2446.0,2445.5,0.6427075]
[1724806575127,8.17706,2445.9,2445.5,0.6427075]
[1724806575454,4.08833,2446.0,2445.5,0.6427075]
[1724806575638,4.08833,2446.0,2445.6,0.48439525]
[1724806576275,4.0885,2445.9,2445.6,0.48439525]
[1724806576478,4.0885,2445.9,2445.5,1.0517075]
[1724806576627,2.2662,2446.3,2445.5,0.409]
[1724806576628,4.08875,2445.8,2445.5,0.409]
[1724806576829,4.08889,2445.7,2445.4,3.0]
[1724806577144,4.08889,2445.7,2445.4,4.09224501]
[1724806577742,4.08875,2445.8,2445.4,4.09224501]
[1724806577743,8.17755,2445.8,2445.4,4.09224501]
[1724806578055,4.08875,2445.8,2445.4,4.09224501]
[1724806578637,4.08881,2445.7,2445.4,4.09224501]
[1724806579036,4.08881,2445.7,2445.4,3.0]
[1724806579238,4.08875,2445.8,2445.4,3.0]
[1724806579651,4.08887,2445.7,2445.4,3.0]
[1724806580647,8.17708,2445.9,2445.4,3.0]
[1724806580860,4.08849,2445.9,2445.4,4.39087495]
[1724806581065,4.08873,2445.8,2445.4,4.39087495]
[1724806581265,4.08849,2445.9,2445.4,4.39087495]
[1724806581678,8.17708,2445.9,2445.4,4.39087495]
[1724806581873,4.08849,2445.9,2445.5,1.20777021]
[1724806582178,4.08784,2446.3,2445.6,8.04405014]
[1724806582486,4.08784,2446.3,2445.7,1.50404729]
[1724806582649,4.08784,2446.3,2445.8,1.25342557]
[1724806583379,4.08784,2446.3,2445.6,10.58668097]
[1724806583380,4.08817,2446.1,2445.6,8.45305014]
[1724806583673,4.08831,2446.0,2445.6,8.45305014]
[1724806584076,4.08817,2446.1,2445.6,7.06582431]
[1724806584238,8.17641,2446.1,2445.7,1.17943331]
[1724806584438,4.08817,2446.1,2445.7,1.17943331]
[1724806584979,4.08794,2446.3,2445.7,1.26120457]
[1724806585856,8.17587,2446.3,2445.7,1.26120457]
[1724806586064,4.08803,2446.2,2445.8,1.1313069]
[1724806586371,4.08815,2446.1,2445.8,1.1313069]
[1724806587582,4.0884,2446.0,2445.6,2.9]
[1724806587788,4.0884,2446.0,2445.5,7.36900909]
[1724806587945,4.0884,2446.0,2445.6,3.0]
[1724806588292,4.08857,2445.9,2445.6,3.0]
[1724806588579,4.08868,2445.8,2445.6,3.0]
[1724806589257,4.08914,2445.5,2445.3,4.16582431]
[1724806589474,4.08897,2445.6,2445.3,4.16582431]
[1724806589658,6.50824,2446.2,2445.3,4.16582431]
[1724806589659,4.08876,2445.8,2445.3,4.16582431]
[1724806590453,4.08875,2445.8,2445.3,4.16582431]
[1724806591077,4.0889,2445.7,2445.3,4.16582431]
[1724806591389,4.08875,2445.8,2445.3,4.16582431]
[1724806591588,4.08875,2445.8,2445.3,5.39443505]
[1724806591788,4.08875,2445.8,2445.4,2.3452]
[1724806592991,4.08866,2445.8,2445.4,2.3452]
[1724806593659,8.17739,2445.8,2445.4,2.3452]
[1724806593866,4.08866,2445.8,2445.4,2.3452]
[1724806595479,8.17739,2445.8,2445.4,2.3452]
[1724806595788,2.4823,2446.5,2445.4,3.41780403]
[1724806596086,8.17684,2446.0,2445.6,4.16582431]
[1724806596268,4.08847,2445.9,2445.6,4.16582431]
[1724806596467,2.3551,2445.9,2445.4,2.13387784]
[1724806596690,4.08891,2445.7,2445.0,2.3872]
[1724806597001,4.08856,2445.9,2445.4,4.16582431]
[1724806597154,4.08891,2445.7,2445.5,0.41658243]
[1724806597364,4.08891,2445.7,2445.4,4.16582431]
[1724806597690,4.08891,2445.7,2445.3,3.06838869]
[1724806597878,4.08891,2445.7,2445.4,1.42250145]
[1724806598185,4.08842,2446.0,2445.5,4.16582431]
[1724806598397,4.08842,2446.0,2445.6,2.3327]
[1724806598555,4.08856,2445.9,2445.6,2.3327]
[1724806598963,11.25277431,2446.9,2445.6,2.3327]
[1724806598964,4.08817,2446.1,2445.7,0.08177497]
[1724806599179,4.08817,2446.1,2445.6,2.3327]
[1724806599180,4.08817,2446.1,2445.6,7.54855495]
[1724806599504,4.08817,2446.1,2445.7,2.76560521]
[1724806599658,4.08817,2446.1,2445.7,1.42502472]
[1724806600196,4.08808,2446.2,2445.7,1.42502472]
[1724806600197,4.08831,2446.0,2445.7,1.42502472]
[1724806601391,4.08831,2446.0,2445.7,2.76558635]
[1724806601596,4.08831,2446.0,2445.7,1.34325781]
[1724806601804,4.08914,2445.5,2445.4,0.8525274]
[1724806602093,4.08914,2445.5,2445.3,3.6506911]
[1724806602094,3.23563537,2445.5,2445.3,2.3719]
[1724806602293,4.08914,2445.5,2445.3,0.95240133]
[1724806602492,4.08782,2446.3,2445.1,0.8525274]
[1724806602493,4.08947,2445.3,2445.1,2.13376157]
[1724806602859,4.08947,2445.3,2445.0,4.45636157]
[1724806603197,4.08947,2445.3,2445.1,2.28473375]
[1724806603400,6.56784,2445.7,2445.1,2.28473375]
[1724806603401,4.08964,2445.2,2445.1,2.13376157]
[1724806603697,4.08964,2445.2,2445.0,3.1751274]
[1724806603698,4.08964,2445.2,2445.0,2.13414674]
[1724806603924,4.08964,2445.2,2444.9,4.16582431]
[1724806604073,4.08964,2445.2,2444.9,6.30011347]
[1724806604399,4.08984,2445.1,2444.9,4.16582431]
[1724806607193,4.08997,2445.0,2444.9,4.16582431]
[1724806607495,4.08997,2445.0,2444.7,3.409]
[1724806607606,4.09022,2444.9,2444.7,3.409]
[1724806608014,4.08997,2445.0,2444.7,3.409]
[1724806608214,4.08997,2445.0,2444.7,4.6925844]
[1724806608531,4.08977,2445.2,2444.9,2.3573]
[1724806608881,4.08977,2445.2,2445.0,4.16582431]
[1724806609222,4.0895,2445.3,2445.0,4.16582431]
[1724806609523,8.17941,2445.2,2445.0,0.86575687]
[1724806609704,4.08965,2445.2,2444.9,2.3573]
[1724806610016,4.08916,2445.5,2445.0,7.72303703]
[1724806610188,4.08942,2445.4,2445.0,7.16602556]
[1724806610387,4.08952,2445.3,2445.0,5.03158118]
[1724806613891,4.08964,2445.2,2445.0,5.03158118]
[1724806614931,4.08964,2445.2,2445.0,4.16582431]
[1724806614932,4.08981,2445.1,2445.0,4.16582431]
[1724806615081,4.08999,2445.0,2444.7,8.85840871]
[1724806615280,4.08999,2445.0,2444.8,1.42881751]
[1724806615589,4.08999,2445.0,2444.8,4.42881751]
[1724806616184,4.08982,2445.1,2444.8,4.42881751]
[1724806616725,4.08982,2445.1,2444.9,0.90036418]
[1724806618500,4.08982,2445.1,2444.7,7.57482431]
[1724806619121,4.08955,2445.3,2444.7,7.57482431]
[1724806619286,4.08955,2445.3,2444.8,1.4228577]
[1724806619482,4.08955,2445.3,2444.7,9.70908978]
[1724806619783,4.08955,2445.3,2444.8,1.30045172]
[1724806620319,4.08955,2445.3,2444.8,1.38224616]
[1724806620804,4.08967,2445.2,2444.8,1.30045172]
[1724806620999,8.17918,2445.3,2444.8,1.30045172]
[1724806621332,8.17918,2445.3,2444.7,9.70908978]
[1724806621333,4.08955,2445.3,2444.9,1.10095415]
[1724806621492,8.17914,2445.3,2444.9,1.10095415]
[1724806621818,8.17911,2445.3,2444.9,1.10095415]
[1724806622025,4.08972,2445.2,2444.9,1.10095415]
[1724806622536,4.08955,2445.3,2444.9,1.10095415]
[1724806622733,4.08881,2445.7,2445.1,2.3736]
[1724806622888,4.08765,2446.4,2445.7,2.3736]
[1724806623099,2.2923,2446.6,2446.2,4.16582431]
[1724806623100,4.08741,2446.6,2446.2,4.16582431]
[1724806623320,8.17414,2446.8,2446.4,4.16582431]
[1724806623520,2.2923,2447.1,2446.3,0.08175076]
[1724806623521,4.08668,2447.0,2446.6,4.16582431]
[1724806623894,4.08681,2446.9,2446.6,4.16582431]
[1724806624501,4.08638,2447.2,2446.8,4.16582431]
[1724806624811,8.17343,2447.0,2446.6,4.58240674]
[1724806625331,4.08668,2447.0,2446.6,4.58240674]
[1724806625502,4.08668,2447.0,2446.7,2.3907]
[1724806626129,4.08636,2447.2,2446.8,4.16582431]
[1724806626333,4.08604,2447.4,2447.0,4.16582431]
[1724806626535,4.08627,2447.3,2446.8,4.95303875]
[1724806626703,4.08635,2447.2,2446.8,4.16582431]
[1724806628644,4.08608,2447.4,2446.3,3.409]
[1724806628838,4.08674,2447.0,2446.4,4.16582431]
[1724806629004,8.17349,2447.0,2446.4,7.97998782]
[1724806629204,4.08682,2446.9,2446.4,7.97998782]
[1724806629404,4.08639,2447.2,2446.7,6.43952431]
[1724806629718,4.08639,2447.2,2446.7,7.08347674]
[1724806630039,4.08663,2447.0,2446.7,7.08347674]
[1724806630715,8.17282,2447.2,2446.7,7.08347674]
[1724806631233,4.08676,2447.0,2446.7,4.80977674]
[1724806631535,4.08676,2447.0,2446.4,10.32724498]
[1724806632030,4.08676,2447.0,2446.7,4.16582431]
[1724806632606,4.08638,2447.2,2446.7,4.16582431]
[1724806632936,4.08638,2447.2,2446.8,0.41658243]
[1724806633434,4.08638,2447.2,2446.9,2.2789]
[1724806633607,8.17278,2447.2,2446.9,2.2789]
[1724806634345,4.0865,2447.1,2446.9,2.2789]
[1724806634527,8.17283,2447.2,2446.8,0.41658243]
[1724806634728,8.17283,2447.2,2446.9,0.45824067]
[1724806635026,4.08647,2447.1,2446.9,0.45824067]
[1724806635802,6.38979,2447.5,2446.6,7.36900909]
[1724806636020,4.0869,2446.9,2446.6,7.36900909]
[1724806637473,4.087,2446.8,2446.4,7.16582431]
[1724806637637,4.087,2446.8,2446.4,7.87156915]
[1724806639234,4.0868,2446.9,2446.4,7.87156915]
[1724806640106,4.08707,2446.8,2446.4,7.87156915]
[1724806640312,6.55002,2447.1,2446.4,7.16582431]
[1724806640509,4.08763,2446.4,2446.3,7.36900909]
[1724806640932,8.17526,2446.4,2446.3,7.36900909]
[1724806641323,4.08763,2446.4,2446.3,7.36900909]
[1724806641558,4.08825,2446.1,2445.7,13.8093334]
[1724806641728,4.0879,2446.3,2445.7,6.44032431]
[1724806642609,4.08814,2446.1,2445.7,6.44032431]
[1724806643449,4.08757,2446.5,2445.9,4.16582431]
[1724806643945,4.08764,2446.4,2445.9,4.16582431]
[1724806644314,4.08781,2446.3,2445.9,4.16582431]
[1724806645350,8.17516,2446.5,2445.9,4.87425998]